Cogmind - Beta 15 @@@ ROGUE MODE // 2025.05.17 @ 10:36:35 Player: Cess183 Result: Destroyed by Y-45 Defender with Beam Rifle Performance ------------- Evolutions (1) 500 Regions Visited (2) 400 Robots Destroyed (13) 65 Value Destroyed (331) 331 Prototype IDs (0) 0 Alien Tech Used (0) 0 Bonus (0) 0 TOTAL SCORE: 1296 Bonus ------- None Cogmind --------- Core Integrity 0/400 Matter 166/300 Energy 100/100 System Corruption 2% Temperature Cool (9) Movement Core (350) Ox6 Location -9/Materials Parts ------- > --- POWER (1) -------- (None) > --- PROPULSION (3) --- (None) > --- UTILITY (3) ------ Large Storage Unit Power Shielding > --- WEAPON (2) ------- (None) > --- INVENTORY (15) --- Field Recycling Unit (0) Peak State ------------ > --- POWER ------------ Light Nuclear Core > --- PROPULSION ------- Wheel Wheel > --- UTILITY ---------- Small Storage Unit Improved Terrain Scanner > --- WEAPON ----------- Assault Rifle Grenade Launcher > --- INVENTORY -------- Light Ion Engine Wheel Wheel Seismic Detector Medium Laser [Rating: 11] Favorites ----------- Power Light Nuclear Core Engine Light Ion Engine Power Core Light Nuclear Core Propulsion Wheel Wheel Wheel Utility Large Storage Unit Device Seismic Detector Storage Large Storage Unit Protection Power Shielding Weapon Assault Rifle Energy Gun Medium Laser Ballistic Gun Assault Rifle Launcher Grenade Launcher Build | -11 -10 -9 ------- Run | Yrd Mat Mat Slots Evolved 2 | . . 2 Power . | . . . Propulsion 1 | . . 1 Utility 1 | . . 1 Weapon . | . . . Parts Attached 17 | 7 4 6 Power 2 | 1 1 . Engine 1 | 1 . . Core 1 | . 1 . Reactor . | . . . Propulsion 5 | 2 . 3 Treads . | . . . Leg . | . . . Wheel 5 | 2 . 3 Hover . | . . . Flight . | . . . Utility 6 | 2 2 2 Device 3 | 1 1 1 Storage 2 | 1 1 . Processor . | . . . Hackware . | . . . Protection 1 | . . 1 Artifact . | . . . Weapon 4 | 2 1 1 Energy Gun 1 | 1 . . Energy Cannon . | . . . Ballistic Gun 2 | 1 . 1 Ballistic Cannon . | . . . Launcher 1 | . 1 . Special Weapon . | . . . Impact Weapon . | . . . Slashing Weapon . | . . . Piercing Weapon . | . . . Special Melee Weapon . | . . . Unidentified Prototypes . | . . . Parts Lost 12 | . 1 11 Power 2 | . . 2 Propulsion 3 | . . 3 Utility 3 | . 1 2 Weapon 4 | . . 4 Highest Loss Streak 11 | . 1 11 To Critical Strikes . | . . . Average Backups 3 | 1 5 3 Power . | . . . Propulsion . | . 2 . Utility 1 | . 1 1 Weapon 1 | . 1 1 Tool/Special . | . . . Unused Backups 2 | . . 2 Power . | . . . Propulsion . | . . . Utility 2 | . . 2 Weapon . | . . . Tool/Special . | . . . Average Slot Usage (%) 90 | . 96 85 Engine 1 | . 3 . Core 9 | . 10 9 Wheel 26 | . 28 26 Device 15 | . 10 18 Storage 11 | . 14 9 Ballistic Gun 11 | . 14 9 Launcher 10 | . 12 8 Peak Build Rating 11 | 9 11 11 Average Rating 9 | 6 9 9 On Entrance 6 | . 9 9 Naked Turns 2 | . . 2 Heaviest Build 32 | 13 31 32 Greatest Support 30 | 20 20 30 Greatest Overweight (x) 9 | . 1 9 Average Overweight (x) . | . . 1 Largest Inventory Capacity 15 | 8 15 15 Average Capacity 11 | 7 11 13 Most Carried 7 | 3 7 7 Average Carried 3 | 1 5 3 Final Capacity 15 | 8 15 15 Final Carried 6 | 3 6 1 Class Distribution -------------------- 64% | Mutant 35% | Scavenger-Mutant Dominant Class ---------------- Mutant | -10/Materials Scavenger-Mutant | -9/Materials Resources | -11 -10 -9 ----------- Run | Yrd Mat Mat Matter Collected 471 | 324 56 91 Remotely . | . . . Salvage Created 393 | 131 91 171 Parts 34 | 10 15 9 Haulers Intercepted . | . . . Recyclers Shooed 1 | 1 . . Parts Field Recycled . | . . . Retrieved Matter . | . . . Parts Self-Destructed . | . . . Prevented . | . . . Kills | -11 -10 -9 ------- Run | Yrd Mat Mat Combat Hostiles Destroyed 9 | . 5 4 Guns 3 | . 1 2 AOE 6 | . 4 2 Classes Destroyed 6 | 3 2 1 Worker 1 | 1 . . Tunneler 2 | 2 . . Recycler 1 | 1 . . Swarmer 3 | . 3 . Grunt 3 | . 2 1 Sentry 3 | . . 3 Best Kill Streak 3 | 3 3 2 Combat Bots Only 3 | . 3 2 Max Kills in Single Turn 2 | 1 2 1 Gunslinging . | . . . Exploded 2 | . 2 1 Melee . | . . . Uniques/NPCs Destroyed . | . . . Combat | -11 -10 -9 -------- Run | Yrd Mat Mat Hostile Shots Fired 104 | . 11 93 Missed 28 | . 5 23 Hits 76 | . 6 70 Projectile 76 | . 6 70 Critical Strikes 6 | . . 6 Damage Taken 1207 | . 160 1047 Core 462 | . 50 412 Absorbed by Shields . | . . . Redirected to Shielding 16 | . . 16 Core Remaining (%) 90 | 100 80 . Volleys Fired 42 | 15 11 16 Largest 2 | 2 2 2 Hottest 70 | 70 50 70 Shots Fired 77 | 30 16 31 Gun 63 | 30 11 22 Cannon . | . . . Launcher 14 | . 5 9 Special . | . . . Kinetic 41 | 15 11 15 Thermal 22 | 15 . 7 Explosive 14 | . 5 9 Electromagnetic . | . . . Robot Hit Streak 11 | 4 2 11 Robot Miss Streak 9 | 3 8 9 Penetration Max . | . . . Secondary Targets . | . . . Shots Hit Robots 38 | 16 2 20 Core Hits 28 | 5 10 13 Critical Kills . | . . . Critical Parts Destroyed . | . . . Critical Strikes 2 | 2 . . Burn 2 | 2 . . Melee Attacks . | . . . Impact . | . . . Slashing . | . . . Piercing . | . . . Sneak Attacks . | . . . Combat Hostiles . | . . . Follow-up Attacks . | . . . Damage Inflicted 742 | 213 183 346 Guns 459 | 213 36 210 Cannons . | . . . Explosions 266 | . 139 127 Melee . | . . . Ramming 17 | . 8 9 Kinetic 297 | 126 36 135 Thermal 162 | 87 . 75 Explosive 266 | . 139 127 Electromagnetic . | . . . Impact . | . . . Slashing . | . . . Piercing . | . . . Highest Corruption 2 | . . 2 Average Corruption 2 | . . 2 Corruption Purged . | . . . Corruption Blocked . | . . . Effects 6 | . . 6 Message Errors 2 | . . 2 Matter Fused 1 | . . 1 Heat Flow Errors 1 | . . 1 Energy Discharges 1 | . . 1 Data Loss (minor) 1 | . . 1 Overload Shots . | . . . Overflow Damage 1 | . 1 . Projectiles . | . . . Explosions 1 | . 1 . Melee . | . . . Knockbacks . | . . . Impact . | . . . Kinetic . | . . . Secondary . | . . . Self-Inflicted Damage 71 | . 67 4 Shots 3 | . 3 . Rammed 4 | . 1 3 Targets Rammed 4 | . 1 3 Kicked . | . . . Crushed . | . . . Highest Temperature 103 | 34 2 103 Average Temperature 22 | 13 2 39 Received Heat Transfer 426 | . 45 381 Siege Activations . | . . . Martial Activations . | . . . Shielding Activations . | . . . Robots Disrupted . | . . . Combat Hostiles . | . . . Robots Corrupted . | . . . Combat Hostiles . | . . . Parts Fried . | . . . Impact Corruptions . | . . . Robots Melted . | . . . Combat Hostiles . | . . . Parts Melted 2 | 2 . . Heat Transferred 629 | 407 . 222 Parts Sabotaged . | . . . Parts Stolen . | . . . Parts Stripped . | . . . Power Chain Reactions . | . . . Alert | -11 -10 -9 ------- Run | Yrd Mat Mat Maximum Alert Level . | . . . Low Security (%) 100 | 100 100 100 Level 1 . | . . . Level 2 . | . . . Level 3 . | . . . Level 4 . | . . . Level 5 . | . . . High Security . | . . . Max Security . | . . . Peak Influence 127 | 10 127 50 Initial 11 | . . 11 Average 29 | . 62 18 Influence Increases 411 | 20 168 223 Destroy 0b10 Robot/C 180 | . 100 80 Destroy 0b10 Robot/NC 20 | 20 . . Destroy Leader 60 | . 20 40 Successful Hack 4 | . 4 . Disable Machine 45 | . 15 30 Destroy Structure 72 | . 29 43 Lose Combat Pursuer 30 | . . 30 Influence Decreases 387 | 20 140 227 Entered New Map 17 | . . 17 Time Decay 285 | 20 130 135 Lost Part 85 | . 10 75 Squads Dispatched 2 | . 1 1 Investigation . | . . . Extermination . | . . . Reinforcement 2 | . 1 1 Assault . | . . . Garrison . | . . . Intercept . | . . . Searches Triggered . | . . . Construction Impeded . | . . . Haulers Reinforced . | . . . Active Scanning Responses . | . . . Cargo Convoy Interrupts . | . . . Stealth | -11 -10 -9 --------- Run | Yrd Mat Mat Distress Signals 3 | . 2 1 Communications Jammed . | . . . Distress Signals . | . . . Times Spotted 21 | . 10 11 Peak Tracking Total 8 | . 4 8 Tactical Retreats 1 | . . 1 Traps | -11 -10 -9 ------- Run | Yrd Mat Mat Traps Triggered 2 | . 1 1 Indirectly . | . . . Trap Hack Attempts . | . . . Triggered . | . . . Disarmed . | . . . Reprogrammed . | . . . Reused . | . . . Traps Extracted . | . . . Installed . | . . . Triggered . | . . . Machines | -11 -10 -9 ---------- Run | Yrd Mat Mat Machines Disabled 3 | . 1 2 Max in Single Turn 1 | . 1 1 Machines Repaired . | . . . Machines Dismantled . | . . . Machines Sabotaged . | . . . Overloaded Fab Kills . | . . . Hacking | -11 -10 -9 --------- Run | Yrd Mat Mat Machines Accessed 2 | . 2 . Terminals 1 | . 1 . Fabricators . | . . . Repair Stations . | . . . Recycling Units 1 | . 1 . Scanalyzers . | . . . Garrison Access . | . . . Total Hacks 3 | . 3 . Successful 3 | . 3 . Failed . | . . . Catastrophic . | . . . Database Lockouts . | . . . Manual 2 | . 2 . Terminals 2 | . 2 . Fabricators . | . . . Repair Stations . | . . . Recycling Units 1 | . 1 . Scanalyzers . | . . . Garrison Access . | . . . Terminal Hacks 2 | . 2 . Record 2 | . 2 . Fabricator Hacks . | . . . Repair Station Hacks . | . . . Recycling Unit Hacks 1 | . 1 . Report Inventory 1 | . 1 . Scanalyzer . | . . . Garrison Access Hacks . | . . . Unauthorized Hacks . | . . . Terminals . | . . . Fabricators . | . . . Repair Stations . | . . . Recycling Units . | . . . Scanalyzers . | . . . Garrison Access . | . . . Data Cores Recovered . | . . . Used . | . . . Hacking Detections 2 | . 2 . Full Trace Events . | . . . Feedback Events . | . . . Feedback Blocked . | . . . Robot Schematics Acquired . | . . . Robots Built . | . . . Authchips . | . . . Time . | . . . Total Robot Build Rating . | . . . Part Schematics Acquired . | . . . Parts Built . | . . . Authchips . | . . . Time . | . . . Total Part Build Rating . | . . . Parts Repaired . | . . . Time . | . . . Parts Recycled . | . . . Recycled Matter . | . . . Retrieved Matter . | . . . Retrieved Components . | . . . Parts Scanalyzed . | . . . Part Schematics Acquired . | . . . Parts Damaged . | . . . Bothacking | -11 -10 -9 ------------ Run | Yrd Mat Mat Used RIF Installer . | . . . Robots Hacked . | . . . Non-combat . | . . . Combat . | . . . Robot Hacks Applied . | . . . Relay Couplers Released . | . . . Fabnet Peak Effective % . | . . . Robots Rewired . | . . . Allies Hacked . | . . . Hacks Repelled . | . . . Allies | -11 -10 -9 -------- Run | Yrd Mat Mat Total Allies . | . . . Largest Group . | . . . Highest-Rated Group . | . . . Highest-Rated Ally . | . . . Total Orders . | . . . Ally Attacks . | . . . Total Damage . | . . . Kills . | . . . Allies Corrupted . | . . . Allies Melted . | . . . Intel | -11 -10 -9 ------- Run | Yrd Mat Mat Active Infowar (turns) 714 | 81 240 393 Terrain 312 | 81 231 . Seismic 402 | . 9 393 Robot Analysis Total . | . . . Derelict Logs Recovered . | . . . Drone Launches . | . . . Drone Recoveries . | . . . Exploration | -11 -10 -9 ------------- Run | Yrd Mat Mat Turns Passed 912 | 177 307 428 Spaces Moved 793 | 149 303 341 Core 36 | 5 . 31 Treads . | . . . Legs . | . . . Wheels 757 | 144 303 310 Hover . | . . . Flight . | . . . Fastest Speed 50 | 50 80 80 Average Speed 92 | 78 87 101 Slowest Speed 500 | 80 95 500 Overloaded Moves . | . . . Propulsion Burnouts . | . . . Robots Hopped . | . . . Potential Cave-ins 2 | . . 2 Cave-ins Triggered . | . . . Exploration Rate (%) 23 | 6 40 24 Regions Visited 2 Branch Regions . Pre-discovered Areas . | . . . Known Exits Taken . | . . . Unknown Exits Taken 2 | 1 1 . Scrap Searched . | . . . Spaces Dug 13 | . . 13 Terrain Destroyed 102 | . 33 69 Melee . | . . . Projectile . | . . . AOE 102 | . 33 69 Terrain Rammed . | . . . Walls Destroyed . | . . . Machines Disabled . | . . . Actions | -11 -10 -9 --------- Run | Yrd Mat Mat Total 896 | 175 327 394 Wait 23 | . 5 18 Move 791 | 148 302 341 Hop . | . . . Pick Up 8 | 3 2 3 Fast Attach 9 | 7 1 1 Attach 8 | 1 1 6 Detach 2 | 1 1 . Swap 4 | . 2 2 Drop 5 | . 1 4 Fire 42 | 15 11 16 Melee . | . . . Ram 4 | . 1 3 Kick . | . . . Crush . | . . . Escape Stasis . | . . . Rewire . | . . . Trap . | . . . Miscellaneous . | . . . Route ------- -11/Scrapyard -10/Materials -9/Materials History --------- Turn | Location | Event 29 | -11/Scrapyard | Discovered new exit (range 15) 178 | -11/Scrapyard | Entered Materials 306 | -10/Materials | Discovered new exit (range 16) 313 | -10/Materials | Build established: Mutant 485 | -10/Materials | Entered another Materials area 485 | -9/Materials | Evolved 2 slots: Propulsion x1, Utility x1 809 | -9/Materials | Build established: Scavenger-Mutant 882 | -9/Materials | Core integrity fell below 50% 900 | -9/Materials | Core integrity fell below 20% 913 | -9/Materials | Destroyed by Y-45 Defender with Beam Rifle Last Messages --------------- 00866_ Y-45 Defender destroyed. 00868_ Heat Sink destroyed. 00869_ Critical hit (Burn: +37). 00873_ K-01 Serf collects debris. 00875_ Y-45 Defender destroyed. 00876_ K-01 Serf collects debris. 00877_ System corrupted: Component data lost. 00878_ Assault Rifle destroyed. 00878_ Critical hit (Burn: +37). 00878_ Seismic Detector destroyed. 00878_ Critical hit (Burn: +37). 00880_ K-01 Serf cleans the Terminal. 00881_ Med. Laser destroyed. 00881_ Critical hit (Burn: +37). 00884_ K-01 Serf collects debris. 00899_ Acquired Lrg. Storage Unit. 00901_ K-01 Serf collects debris. 00909_ Lgt. Ion Engine destroyed. 00910_ R-06 Scavenger collects Lgt. Armor Plating. Map ----- +----------------------------------------------------+ | ??????# # / ##????????????????????????????? | | ??????# #############????????????????????????????? | | ??????# # # ## #????????????????????????????? | | ####### # """ # ## #??????????#?????????????????? | | + """ ### ########??? #?????????????????? | | ####### # """ #?# T #??? #?????????????????? | | ??????# # #?# """ #?? #?????????????????? | | ??????# #= #?# """ #? ##????????????????? | | ????# # #####+##?# """ # #????????????????? | | ????# # ## ## #??# # #????????????????? | | ????# #= #??# ! / #????????????????? | | ????# #%##### #??# [ # #????????????????? | | ????# ???# #??# [[! #?? #????????????????? | | ????## ???# #??# [!! #????##????????????????? | | ?????## ???# #??########+#??????????????????????? | | ??????# #???# #?????????# #??????????????????????? | | ??????# ????# #??######?# #??????????????????????? | | ??????# ????# #??# #?# #??????????????????????? | | ????###+??###+#### #?# #??????????????????????? | | ???? ## ## #?# #??????????????????????? | | #??"" """ ## ##=!! ### ###???????#????????????? | | # """ """ ##[[ ##!% !# #???? ##???????????? | | # """ """ ##[ ##*""r# ### !!#????????? | | # ## ## "T YY !!#????????? | | # "T" ## ## "" # ### ==#????????? | | ? """ ?# ## # @ #????? ==?????????? | | ??? ???# #########/###?????????]]?????????? | | #####+###??# #??????? ?????????????????????? | | #####+###???????"""""????????????????????? | | #???????? """"""???????????????????? | | #???????? """""""??????????????????? | | #??????? """""????????????????????? | | ### #??????? """"?????????????????????? | | #### ######+####??? ?????????????????????????? | | # #??# #???##??????????????????????????? | | " + #??# #???????????????????????????????? | | " # #??#] """#???????????????????????????????? | | " # #??# """#???????????????????????????????? | | # #??# """#???????????????????????????????? | | # #??# #???????????????????????????????? | | # #??########???????????????????????????????? | | #### #?????????????????????????????????????????? | | ??## ##????????????????????????????????????????? | | ### #????????????????????????????????????????? | | #????????????????????????????????????????? | | " #????????????????????????????????????????? | | #????????????????????????????????????????? | | ### #????????????????????????????????????????? | | #########????????????????????????????????????????? | | #?????????????????????????????????????????? | +----------------------------------------------------+ Best States ------------- Heat Dissipation 38 Energy Generation 14 Energy Capacity 160 Matter Stores 300 Matter Capacity 300 Sight Range 16 Terrain Scan Range 16 Terrain Scan Density 10 Power Shielding 33 Evasion (%) 44 Item Schematics ----------------- None Robot Schematics ------------------ None Fabricated ------------ Nothing Repaired ---------- Nothing Alien Tech Used ----------------- None Achievements -------------- None Challenges ------------ None Game ------ Seed FocalColdRipteeth Manual? 0 Play Time 00:17:27 Cumulative 6.0 hours Start 2025.05.17 @ 10:17:53 End 2025.05.17 @ 10:36:35 Sessions 1 Manual Loads 0 Difficulty Rogue Special Mode None Game No. 7 Rogue 7 Adventurer 0 Explorer 0 Win Type - Total 0 Types 0/0/0/0/0/0/0/0/0/0 Lore% 1 Gallery% 7 Achievement% 7 Wizard Run 0 Options --------- Layout 1 ASCII 0 Keyboard 1 Movement Vi Keybinds 0 Fullscreen 1 Font 24/Smallcaps Map View 50x35 Zoom Use 0% Tactical HUD 1 Map Filters NONE Filters NONE Steam 1 RUN: 0f04c510-4370-4cd6-915b-c421476be80e